[Event "*** SCC Grand Prix: Titled Tuesday Blitz"]
[Site "Chess.com"]
[Date "2020.06.09"]
[Round "7"]
[White "chargemax23"]
[Black "pastouche06"]
[Result "1-0"]
[WhiteElo "2699"]
[BlackElo "2494"]
[TimeControl "180+1"]
[EndTime "10:19:22 PDT"]
[Termination "chargemax23 won on time"]

1. c4 {[%clk 0:03:00.9]} 1... e6 {[%clk 0:02:54.1]} 2. Nc3 {[%clk 0:03:01.1]}
2... d5 {[%clk 0:02:53.8]} 3. e3 {[%clk 0:03:01.4]} 3... Nf6 {[%clk 0:02:50]} 4.
Nf3 {[%clk 0:03:01.1]} 4... c5 {[%clk 0:02:44.2]} 5. cxd5 {[%clk 0:03:00.5]}
5... exd5 {[%clk 0:02:44]} 6. d4 {[%clk 0:03:00.8]} 6... Nc6 {[%clk 0:02:44.2]}
7. Bb5 {[%clk 0:02:59.8]} 7... Bd6 {[%clk 0:02:43.8]} 8. dxc5 {[%clk 0:02:58.4]}
8... Bxc5 {[%clk 0:02:44.7]} 9. O-O {[%clk 0:02:58.3]} 9... O-O {[%clk
0:02:44.5]} 10. b3 {[%clk 0:02:57.9]} 10... Bg4 {[%clk 0:02:44.2]} 11. Be2
{[%clk 0:02:56]} 11... Rc8 {[%clk 0:02:32.2]} 12. Bb2 {[%clk 0:02:55.3]} 12...
Re8 {[%clk 0:02:32.8]} 13. Rc1 {[%clk 0:02:54.3]} 13... Bd6 {[%clk 0:02:25.9]}
14. h3 {[%clk 0:02:49.1]} 14... Bh5 {[%clk 0:02:22.2]} 15. Nd4 {[%clk
0:02:44.5]} 15... Bg6 {[%clk 0:02:15.5]} 16. Bf3 {[%clk 0:02:33.2]} 16... Be5
{[%clk 0:02:13]} 17. Nce2 {[%clk 0:02:22.7]} 17... Be4 {[%clk 0:02:08.8]} 18.
Qd2 {[%clk 0:02:20.4]} 18... Bxf3 {[%clk 0:01:28.5]} 19. gxf3 {[%clk 0:02:13.7]}
19... Nh5 {[%clk 0:01:15.5]} 20. f4 {[%clk 0:02:10.4]} 20... Bb8 {[%clk
0:01:03.9]} 21. Nf3 {[%clk 0:02:07.4]} 21... Qd7 {[%clk 0:00:49.9]} 22. Kg2
{[%clk 0:02:05.6]} 22... Re6 {[%clk 0:00:46.2]} 23. Rh1 {[%clk 0:02:05.3]} 23...
Rg6+ {[%clk 0:00:45.2]} 24. Kf1 {[%clk 0:02:05.4]} 24... Nf6 {[%clk 0:00:42.3]}
25. Rd1 {[%clk 0:02:00.7]} 25... Rh6 {[%clk 0:00:39.9]} 26. Ng5 {[%clk
0:01:55.8]} 26... Rd8 {[%clk 0:00:30.7]} 27. Ng3 {[%clk 0:01:54.4]} 27... Nh5
{[%clk 0:00:26.4]} 28. Rg1 {[%clk 0:01:25.2]} 28... Nxg3+ {[%clk 0:00:22.4]} 29.
Rxg3 {[%clk 0:01:24.7]} 29... f6 {[%clk 0:00:22.5]} 30. Ne4 {[%clk 0:01:20.2]}
30... Kh8 {[%clk 0:00:16.5]} 31. Kg2 {[%clk 0:01:08.4]} 31... Ne7 {[%clk
0:00:16.3]} 32. Qc3 {[%clk 0:00:59.8]} 32... Nf5 {[%clk 0:00:15.3]} 33. Nxf6
{[%clk 0:00:59.9]} 33... d4 {[%clk 0:00:06.3]} 34. Nxd7 {[%clk 0:00:57.9]} 34...
dxc3 {[%clk 0:00:06]} 35. Bxc3 {[%clk 0:00:46.2]} 35... Nxg3 {[%clk 0:00:06.1]}
36. fxg3 {[%clk 0:00:44.7]} 36... Rd6 {[%clk 0:00:06]} 37. Rxd6 {[%clk
0:00:44.1]} 37... Bxd6 {[%clk 0:00:06.9]} 38. Ne5 {[%clk 0:00:43.7]} 38... Bxe5
{[%clk 0:00:07.1]} 39. Bxe5 {[%clk 0:00:43.9]} 39... Rd2+ {[%clk 0:00:04.1]} 40.
Kf3 {[%clk 0:00:44]} 40... Rxa2 {[%clk 0:00:05]} 41. b4 {[%clk 0:00:43.8]} 41...
Ra4 {[%clk 0:00:04.2]} 42. Bd6 {[%clk 0:00:43.7]} 42... Kg8 {[%clk 0:00:04]} 43.
g4 {[%clk 0:00:42.6]} 43... Kf7 {[%clk 0:00:03.8]} 44. f5 {[%clk 0:00:43.1]}
44... Ra3 {[%clk 0:00:03.3]} 45. h4 {[%clk 0:00:41.9]} 45... Rb3 {[%clk
0:00:03.1]} 46. Kf4 {[%clk 0:00:41.4]} 46... Rd3 {[%clk 0:00:02.7]} 47. Bc5
{[%clk 0:00:40.3]} 47... b6 {[%clk 0:00:02.9]} 48. Bd4 {[%clk 0:00:40.4]} 48...
Rb3 {[%clk 0:00:02.3]} 49. e4 {[%clk 0:00:40.4]} 49... Rxb4 {[%clk 0:00:02.4]}
50. Ke5 {[%clk 0:00:41]} 50... Rb5+ {[%clk 0:00:02.3]} 51. Kd6 {[%clk 0:00:41]}
51... a5 {[%clk 0:00:02.4]} 52. e5 {[%clk 0:00:41.2]} 52... a4 {[%clk
0:00:02.8]} 53. e6+ {[%clk 0:00:41.6]} 53... Ke8 {[%clk 0:00:03.3]} 54. Bxg7
{[%clk 0:00:41.3]} 54... a3 {[%clk 0:00:02.7]} 55. f6 {[%clk 0:00:41.7]} 1-0

[Event "*** SCC Grand Prix: Titled Tuesday Blitz"]
[Site "Chess.com"]
[Date "2020.06.09"]
[Round "7"]
[White "chesstrainer2042"]
[Black "i_am_sankalp"]
[Result "1/2-1/2"]
[WhiteElo "2433"]
[BlackElo "2192"]
[TimeControl "180+1"]
[EndTime "10:19:22 PDT"]
[Termination "Game drawn by repetition"]

1. d4 {[%clk 0:03:00.9]} 1... Nf6 {[%clk 0:02:56.8]} 2. Nf3 {[%clk 0:03:01.4]}
2... g6 {[%clk 0:02:52.5]} 3. g3 {[%clk 0:02:58.3]} 3... Bg7 {[%clk 0:02:52.4]}
4. b3 {[%clk 0:02:58.9]} 4... O-O {[%clk 0:02:51.5]} 5. Bb2 {[%clk 0:02:59.4]}
5... d6 {[%clk 0:02:52]} 6. Bg2 {[%clk 0:02:59.4]} 6... c6 {[%clk 0:02:52.2]} 7.
O-O {[%clk 0:02:57.9]} 7... Qa5 {[%clk 0:02:52.7]} 8. Nbd2 {[%clk 0:02:55]} 8...
Qh5 {[%clk 0:02:51.5]} 9. e4 {[%clk 0:02:49]} 9... Bh3 {[%clk 0:02:48.9]} 10.
Re1 {[%clk 0:02:48.4]} 10... Nbd7 {[%clk 0:02:40]} 11. Bh1 {[%clk 0:02:41.3]}
11... Bg4 {[%clk 0:02:33.7]} 12. Nc4 {[%clk 0:02:27.1]} 12... Bh6 {[%clk
0:02:04.7]} 13. Ne3 {[%clk 0:02:23.3]} 13... Bxe3 {[%clk 0:01:58.8]} 14. Rxe3
{[%clk 0:02:22.4]} 14... e5 {[%clk 0:01:57.4]} 15. Qd2 {[%clk 0:02:10.9]} 15...
Nxe4 {[%clk 0:01:31.9]} 16. Rxe4 {[%clk 0:02:09.4]} 16... Bxf3 {[%clk
0:01:32.1]} 17. Rh4 {[%clk 0:02:07.7]} 17... Qf5 {[%clk 0:01:28]} 18. Qh6 {[%clk
0:02:02.4]} 18... Nf6 {[%clk 0:01:23.4]} 19. dxe5 {[%clk 0:01:55.8]} 19... dxe5
{[%clk 0:01:21.2]} 20. Bxf3 {[%clk 0:01:53.3]} 20... Qxf3 {[%clk 0:01:16.1]} 21.
Bxe5 {[%clk 0:01:40.4]} 21... Rfe8 {[%clk 0:01:14.3]} 22. Bxf6 {[%clk
0:01:19.8]} 22... Qxf6 {[%clk 0:01:15.2]} 23. Qxh7+ {[%clk 0:01:17.8]} 23... Kf8
{[%clk 0:01:15.9]} 24. Qh8+ {[%clk 0:01:16]} 24... Qxh8 {[%clk 0:01:16.4]} 25.
Rxh8+ {[%clk 0:01:16]} 25... Kg7 {[%clk 0:01:17]} 26. Rxe8 {[%clk 0:01:15.5]}
26... Rxe8 {[%clk 0:01:17.9]} 27. Kf1 {[%clk 0:01:14.6]} 27... g5 {[%clk
0:01:18.3]} 28. Rd1 {[%clk 0:01:12.8]} 28... Re7 {[%clk 0:01:17.1]} 29. h3
{[%clk 0:01:06.2]} 29... f6 {[%clk 0:01:15.5]} 30. Rd6 {[%clk 0:01:04.2]} 30...
Kg6 {[%clk 0:01:15.3]} 31. g4 {[%clk 0:00:59.1]} 31... Rh7 {[%clk 0:01:15.5]}
32. Kg2 {[%clk 0:00:58.3]} 32... Rc7 {[%clk 0:01:13.7]} 33. c4 {[%clk
0:00:54.9]} 33... c5 {[%clk 0:01:10.9]} 34. a3 {[%clk 0:00:51.3]} 34... Kf7
{[%clk 0:01:11.3]} 35. Kg3 {[%clk 0:00:48.4]} 35... Ke7 {[%clk 0:01:11]} 36. Rd5
{[%clk 0:00:48.9]} 36... Ke6 {[%clk 0:01:09.5]} 37. h4 {[%clk 0:00:45.6]} 37...
gxh4+ {[%clk 0:01:08.8]} 38. Kxh4 {[%clk 0:00:45.7]} 38... b5 {[%clk 0:01:08.9]}
39. Kg3 {[%clk 0:00:45.1]} 39... a5 {[%clk 0:01:08.3]} 40. f4 {[%clk 0:00:43.2]}
40... a4 {[%clk 0:01:03.4]} 41. f5+ {[%clk 0:00:43]} 41... Ke7 {[%clk
0:01:03.9]} 42. bxa4 {[%clk 0:00:39.5]} 42... bxc4 {[%clk 0:01:04.2]} 43. Kf3
{[%clk 0:00:38.1]} 43... Ra7 {[%clk 0:00:57.7]} 44. Rxc5 {[%clk 0:00:37.3]}
44... Rxa4 {[%clk 0:00:58.3]} 45. Kf4 {[%clk 0:00:26.3]} 45... c3+ {[%clk
0:00:56.9]} 46. Ke3 {[%clk 0:00:24.1]} 46... Rxa3 {[%clk 0:00:57.8]} 47. Kd3
{[%clk 0:00:23.8]} 47... Ra4 {[%clk 0:00:57.3]} 48. Kxc3 {[%clk 0:00:22.4]}
48... Rxg4 {[%clk 0:00:56.7]} 49. Kd3 {[%clk 0:00:22.4]} 49... Kf7 {[%clk
0:00:48.3]} 50. Ke3 {[%clk 0:00:21.7]} 50... Kg7 {[%clk 0:00:47.9]} 51. Rc6
{[%clk 0:00:21.3]} 51... Ra4 {[%clk 0:00:44.2]} 52. Kf3 {[%clk 0:00:21.3]} 52...
Rb4 {[%clk 0:00:42.3]} 53. Kg3 {[%clk 0:00:21.6]} 53... Rd4 {[%clk 0:00:41.6]}
54. Kf3 {[%clk 0:00:21.7]} 54... Ra4 {[%clk 0:00:41.3]} 55. Kg3 {[%clk
0:00:22.1]} 55... Rb4 {[%clk 0:00:40.5]} 56. Kf3 {[%clk 0:00:22.7]} 56... Ra4
{[%clk 0:00:40.4]} 57. Kg3 {[%clk 0:00:23]} 57... Rb4 {[%clk 0:00:40.6]} 58. Kf3
{[%clk 0:00:23.1]} 58... Ra4 {[%clk 0:00:40.9]} 1/2-1/2

[Event "*** SCC Grand Prix: Titled Tuesday Blitz"]
[Site "Chess.com"]
[Date "2020.06.09"]
[Round "7"]
[White "chessmaugli"]
[Black "KamlaPasand"]
[Result "1-0"]
[WhiteElo "2451"]
[BlackElo "2219"]
[TimeControl "180+1"]
[EndTime "10:19:25 PDT"]
[Termination "chessmaugli won on time"]

1. e4 {[%clk 0:03:00.9]} 1... c5 {[%clk 0:02:59.4]} 2. Nf3 {[%clk 0:03:00.4]}
2... d6 {[%clk 0:02:59.5]} 3. d4 {[%clk 0:02:59]} 3... cxd4 {[%clk 0:03:00.4]}
4. Qxd4 {[%clk 0:02:58.6]} 4... Nf6 {[%clk 0:03:01.3]} 5. e5 {[%clk 0:02:57.5]}
5... Nc6 {[%clk 0:03:00.9]} 6. Bb5 {[%clk 0:02:56]} 6... Qa5+ {[%clk 0:02:20]}
7. Nc3 {[%clk 0:02:54.4]} 7... dxe5 {[%clk 0:02:19.5]} 8. Nxe5 {[%clk
0:02:43.2]} 8... Qxb5 {[%clk 0:02:12.9]} 9. Nxb5 {[%clk 0:02:40]} 9... Nxd4
{[%clk 0:02:13.1]} 10. Nxd4 {[%clk 0:02:40.2]} 10... a6 {[%clk 0:02:06.1]} 11.
c4 {[%clk 0:02:37.2]} 11... e6 {[%clk 0:02:01.1]} 12. Be3 {[%clk 0:02:28.5]}
12... Bd6 {[%clk 0:01:57.5]} 13. Ndf3 {[%clk 0:02:17.9]} 13... Bd7 {[%clk
0:01:50]} 14. O-O-O {[%clk 0:02:14.6]} 14... Be7 {[%clk 0:01:17.9]} 15. Rd3
{[%clk 0:01:55.7]} 15... h5 {[%clk 0:01:10.4]} 16. Rhd1 {[%clk 0:01:53.2]} 16...
Ba4 {[%clk 0:01:08.4]} 17. b3 {[%clk 0:01:50.7]} 17... Bc6 {[%clk 0:01:07.6]}
18. Nxc6 {[%clk 0:01:48.6]} 18... bxc6 {[%clk 0:01:08.5]} 19. Ne5 {[%clk
0:01:45.7]} 19... Rc8 {[%clk 0:01:07.9]} 20. Bg5 {[%clk 0:01:33.5]} 20... Ba3+
{[%clk 0:00:58.4]} 21. Kc2 {[%clk 0:01:30.3]} 21... Be7 {[%clk 0:00:49.4]} 22.
f3 {[%clk 0:01:17.4]} 22... O-O {[%clk 0:00:48]} 23. Nd7 {[%clk 0:01:10.5]}
23... Rfe8 {[%clk 0:00:40.4]} 24. Bf4 {[%clk 0:00:58.1]} 24... Nxd7 {[%clk
0:00:33.8]} 25. Rxd7 {[%clk 0:00:56.3]} 25... Bf6 {[%clk 0:00:34]} 26. Ra7
{[%clk 0:00:52.6]} 26... e5 {[%clk 0:00:31.6]} 27. Be3 {[%clk 0:00:49.7]} 27...
e4 {[%clk 0:00:30.1]} 28. f4 {[%clk 0:00:48.1]} 28... Red8 {[%clk 0:00:14.4]}
29. Rxa6 {[%clk 0:00:45.8]} 29... Ra8 {[%clk 0:00:13.5]} 30. Rxa8 {[%clk
0:00:41]} 30... Rxa8 {[%clk 0:00:14.4]} 31. a4 {[%clk 0:00:40.7]} 31... Kh7
{[%clk 0:00:14.7]} 32. Rd7 {[%clk 0:00:38.2]} 32... Kg6 {[%clk 0:00:14]} 33. Rc7
{[%clk 0:00:34.5]} 33... Rd8 {[%clk 0:00:13.5]} 34. a5 {[%clk 0:00:28.2]} 34...
Rd3 {[%clk 0:00:13.2]} 35. Bd2 {[%clk 0:00:24.6]} 35... Kf5 {[%clk 0:00:07]} 36.
a6 {[%clk 0:00:23.6]} 36... Rd8 {[%clk 0:00:05.5]} 37. Be3 {[%clk 0:00:20.6]}
37... h4 {[%clk 0:00:05.8]} 38. a7 {[%clk 0:00:19.8]} 38... h3 {[%clk
0:00:06.2]} 39. g3 {[%clk 0:00:18.2]} 39... Kg4 {[%clk 0:00:06.1]} 40. Rb7
{[%clk 0:00:16.8]} 40... Kf3 {[%clk 0:00:05.8]} 41. Rb8 {[%clk 0:00:15.8]} 41...
Rd3 {[%clk 0:00:05.3]} 42. a8=Q {[%clk 0:00:13.9]} 42... Rc3+ {[%clk 0:00:05.1]}
43. Kd1 {[%clk 0:00:12.4]} 43... Rd3+ {[%clk 0:00:04]} 44. Bd2 {[%clk 0:00:10]}
1-0

[Event "*** SCC Grand Prix: Titled Tuesday Blitz"]
[Site "Chess.com"]
[Date "2020.06.09"]
[Round "7"]
[White "Shivagami"]
[Black "Bhagya_2312"]
[Result "1-0"]
[WhiteElo "2268"]
[BlackElo "2126"]
[TimeControl "180+1"]
[EndTime "10:19:26 PDT"]
[Termination "Shivagami won on time"]

1. d4 {[%clk 0:02:46.8]} 1... d5 {[%clk 0:02:59.2]} 2. c4 {[%clk 0:02:46.3]}
2... e6 {[%clk 0:02:59.4]} 3. Nc3 {[%clk 0:02:44.9]} 3... c5 {[%clk 0:02:59.5]}
4. cxd5 {[%clk 0:02:40.9]} 4... exd5 {[%clk 0:02:59.4]} 5. dxc5 {[%clk 0:02:41]}
5... d4 {[%clk 0:02:58.2]} 6. Ne4 {[%clk 0:02:38.7]} 6... Nc6 {[%clk 0:02:57.9]}
7. Nf3 {[%clk 0:02:29.9]} 7... Bxc5 {[%clk 0:02:49.9]} 8. Nxc5 {[%clk
0:02:24.8]} 8... Qa5+ {[%clk 0:02:49.6]} 9. Bd2 {[%clk 0:02:23.9]} 9... Qxc5
{[%clk 0:02:49.3]} 10. g3 {[%clk 0:02:23.6]} 10... Nge7 {[%clk 0:02:44.8]} 11.
Bg2 {[%clk 0:02:22.1]} 11... O-O {[%clk 0:02:44.7]} 12. O-O {[%clk 0:02:21]}
12... Qb6 {[%clk 0:02:44.6]} 13. Qb3 {[%clk 0:02:05.6]} 13... Be6 {[%clk
0:02:28.6]} 14. Qxb6 {[%clk 0:01:54]} 14... axb6 {[%clk 0:02:27.7]} 15. b3
{[%clk 0:01:54]} 15... h6 {[%clk 0:02:20.3]} 16. Rfd1 {[%clk 0:01:33.2]} 16...
Rfd8 {[%clk 0:01:49.8]} 17. Bf4 {[%clk 0:01:20.7]} 17... Nd5 {[%clk 0:01:22.7]}
18. Ne5 {[%clk 0:01:08.3]} 18... Nxe5 {[%clk 0:01:03.8]} 19. Bxe5 {[%clk
0:01:07.4]} 19... Nc3 {[%clk 0:01:03.8]} 20. Rd2 {[%clk 0:01:00.9]} 20... Bxb3
{[%clk 0:01:02.6]} 21. a3 {[%clk 0:00:50.9]} 21... Bc4 {[%clk 0:01:00.1]} 22.
Bf3 {[%clk 0:00:38.9]} 22... Rd7 {[%clk 0:00:44.3]} 23. Bxd4 {[%clk 0:00:30.9]}
23... Bxe2 {[%clk 0:00:34.9]} 24. Bxc3 {[%clk 0:00:08.9]} 24... Rxd2 {[%clk
0:00:33]} 25. Bxd2 {[%clk 0:00:09.8]} 25... Bxf3 {[%clk 0:00:33]} 26. Bb4 {[%clk
0:00:09]} 26... Rc8 {[%clk 0:00:29.7]} 27. Kf1 {[%clk 0:00:07.9]} 27... Rc2
{[%clk 0:00:28.3]} 28. Ke1 {[%clk 0:00:07.4]} 28... Re2+ {[%clk 0:00:27.2]} 29.
Kf1 {[%clk 0:00:07.5]} 29... f6 {[%clk 0:00:23.2]} 30. Rc1 {[%clk 0:00:07.4]}
30... Rb2 {[%clk 0:00:20.5]} 31. Re1 {[%clk 0:00:06]} 31... Kf7 {[%clk 0:00:19]}
32. Re7+ {[%clk 0:00:04.5]} 32... Kg6 {[%clk 0:00:18.9]} 33. Ke1 {[%clk
0:00:04.8]} 33... h5 {[%clk 0:00:13.3]} 34. h4 {[%clk 0:00:04.3]} 34... Bc6
{[%clk 0:00:08.7]} 35. Rc7 {[%clk 0:00:04.2]} 35... Rc2 {[%clk 0:00:06]} 36. Kd1
{[%clk 0:00:03.4]} 36... Rxf2 {[%clk 0:00:04.9]} 37. Ke1 {[%clk 0:00:03]} 37...
Rg2 {[%clk 0:00:04.4]} 38. Bd6 {[%clk 0:00:02.3]} 38... Rg1+ {[%clk 0:00:01.7]}
39. Kf2 {[%clk 0:00:02.1]} 1-0

[Event "*** SCC Grand Prix: Titled Tuesday Blitz"]
[Site "Chess.com"]
[Date "2020.06.09"]
[Round "7"]
[White "Onischuk_V"]
[Black "VincentKeymer"]
[Result "0-1"]
[WhiteElo "2884"]
[BlackElo "2773"]
[TimeControl "180+1"]
[EndTime "10:19:29 PDT"]
[Termination "VincentKeymer won on time"]

1. e4 {[%clk 0:02:59.6]} 1... e6 {[%clk 0:02:59.6]} 2. d4 {[%clk 0:02:59.3]}
2... d5 {[%clk 0:03:00.5]} 3. Bd3 {[%clk 0:02:59.8]} 3... dxe4 {[%clk
0:03:00.3]} 4. Bxe4 {[%clk 0:03:00.1]} 4... Nf6 {[%clk 0:03:01]} 5. Bf3 {[%clk
0:03:00.7]} 5... c5 {[%clk 0:03:01.6]} 6. Ne2 {[%clk 0:03:01.3]} 6... Nc6 {[%clk
0:03:02.2]} 7. Be3 {[%clk 0:03:00.6]} 7... cxd4 {[%clk 0:03:02.4]} 8. Nxd4
{[%clk 0:03:00.5]} 8... Ne5 {[%clk 0:03:03]} 9. Nc3 {[%clk 0:03:00.8]} 9... a6
{[%clk 0:03:03.2]} 10. Qe2 {[%clk 0:03:00]} 10... Nxf3+ {[%clk 0:03:02.9]} 11.
Qxf3 {[%clk 0:03:00.3]} 11... e5 {[%clk 0:03:01.8]} 12. Nf5 {[%clk 0:02:47.8]}
12... Qa5 {[%clk 0:02:53.5]} 13. Ng3 {[%clk 0:01:47.2]} 13... Qb4 {[%clk
0:02:33.3]} 14. Ne4 {[%clk 0:01:22.9]} 14... Bg4 {[%clk 0:01:52.3]} 15. Nxf6+
{[%clk 0:01:14.8]} 15... gxf6 {[%clk 0:01:53.2]} 16. Qd5 {[%clk 0:01:14.9]}
16... Qxb2 {[%clk 0:01:30.8]} 17. O-O {[%clk 0:01:13.8]} 17... Qxc3 {[%clk
0:01:27.7]} 18. Qxb7 {[%clk 0:01:13.5]} 18... Qc8 {[%clk 0:01:19.7]} 19. Qb6
{[%clk 0:01:10.6]} 19... Rb8 {[%clk 0:01:13.2]} 20. Qxf6 {[%clk 0:01:06.6]}
20... Rg8 {[%clk 0:01:12.8]} 21. Qxe5+ {[%clk 0:01:05.7]} 21... Be6 {[%clk
0:01:10.6]} 22. Bf4 {[%clk 0:01:02.4]} 22... Rb5 {[%clk 0:01:07.2]} 23. Qe3
{[%clk 0:00:59.9]} 23... Bc5 {[%clk 0:01:03.4]} 24. Qd3 {[%clk 0:00:52.3]} 24...
Rg6 {[%clk 0:00:45.5]} 25. Bg3 {[%clk 0:00:48.7]} 25... Be7 {[%clk 0:00:42.9]}
26. Rfe1 {[%clk 0:00:44.6]} 26... h5 {[%clk 0:00:42]} 27. h4 {[%clk 0:00:42.1]}
27... Qc4 {[%clk 0:00:36.5]} 28. Qf3 {[%clk 0:00:38]} 28... Qd5 {[%clk
0:00:32.8]} 29. Qf4 {[%clk 0:00:36.9]} 29... Rg4 {[%clk 0:00:30.2]} 30. Qh6
{[%clk 0:00:32.6]} 30... Rg8 {[%clk 0:00:19.2]} 31. c4 {[%clk 0:00:27.7]} 31...
Qxc4 {[%clk 0:00:17.9]} 32. Rac1 {[%clk 0:00:27.3]} 32... Qd5 {[%clk 0:00:15.5]}
33. Qh7 {[%clk 0:00:20.6]} 33... Rf8 {[%clk 0:00:14.2]} 34. Rcd1 {[%clk
0:00:18.2]} 34... Qf5 {[%clk 0:00:12.1]} 35. Qh6 {[%clk 0:00:17.5]} 35... Rd5
{[%clk 0:00:11.8]} 36. Rb1 {[%clk 0:00:16.6]} 36... Rg8 {[%clk 0:00:12]} 37.
Rb8+ {[%clk 0:00:15.4]} 37... Rd8 {[%clk 0:00:12.3]} 38. Rxd8+ {[%clk
0:00:14.3]} 38... Bxd8 {[%clk 0:00:13.2]} 39. Qe3 {[%clk 0:00:13.6]} 39... Be7
{[%clk 0:00:12.1]} 40. Qa7 {[%clk 0:00:13.1]} 40... Qb5 {[%clk 0:00:10.5]} 41.
Qa8+ {[%clk 0:00:12.1]} 41... Bd8 {[%clk 0:00:10.8]} 42. Rd1 {[%clk 0:00:11.6]}
42... Ke7 {[%clk 0:00:10.9]} 43. Qa7+ {[%clk 0:00:09.4]} 43... Kf6 {[%clk
0:00:09.6]} 44. Qd4+ {[%clk 0:00:09.1]} 44... Kg6 {[%clk 0:00:07.5]} 45. a4
{[%clk 0:00:06.6]} 45... Qf5 {[%clk 0:00:07.2]} 46. Qa7 {[%clk 0:00:03.9]} 46...
a5 {[%clk 0:00:06.5]} 47. Qb8 {[%clk 0:00:01.4]} 47... Qf6 {[%clk 0:00:03.6]}
0-1

[Event "*** SCC Grand Prix: Titled Tuesday Blitz"]
[Site "Chess.com"]
[Date "2020.06.09"]
[Round "7"]
[White "RaunakSadhwani2005"]
[Black "Semen_Khanin"]
[Result "1-0"]
[WhiteElo "2903"]
[BlackElo "2739"]
[TimeControl "180+1"]
[EndTime "10:19:29 PDT"]
[Termination "RaunakSadhwani2005 won by checkmate"]

1. e4 {[%clk 0:03:00.9]} 1... c5 {[%clk 0:02:59]} 2. Nc3 {[%clk 0:03:00.1]} 2...
Nc6 {[%clk 0:02:58.6]} 3. Bb5 {[%clk 0:02:56.6]} 3... Nd4 {[%clk 0:02:58.9]} 4.
Nf3 {[%clk 0:02:56.6]} 4... Nxb5 {[%clk 0:02:58.5]} 5. Nxb5 {[%clk 0:02:57.5]}
5... d6 {[%clk 0:02:57.4]} 6. d4 {[%clk 0:02:57.2]} 6... cxd4 {[%clk 0:02:57]}
7. Nfxd4 {[%clk 0:02:56.8]} 7... Nf6 {[%clk 0:02:56.3]} 8. Qd3 {[%clk
0:02:56.6]} 8... a6 {[%clk 0:02:56]} 9. Nc3 {[%clk 0:02:56.2]} 9... g6 {[%clk
0:02:53.4]} 10. Bg5 {[%clk 0:02:52.8]} 10... Bg7 {[%clk 0:02:52.9]} 11. O-O-O
{[%clk 0:02:51.5]} 11... O-O {[%clk 0:02:47.2]} 12. h4 {[%clk 0:02:50.7]} 12...
h5 {[%clk 0:02:38.8]} 13. f3 {[%clk 0:02:43.3]} 13... Qa5 {[%clk 0:02:34.6]} 14.
Kb1 {[%clk 0:02:35.1]} 14... Be6 {[%clk 0:01:55.5]} 15. Bd2 {[%clk 0:02:27.8]}
15... Qc5 {[%clk 0:01:49.4]} 16. Be3 {[%clk 0:01:53.7]} 16... Qc4 {[%clk
0:01:47.4]} 17. Qd2 {[%clk 0:01:47.3]} 17... b5 {[%clk 0:01:46.3]} 18. b3 {[%clk
0:01:41.7]} 18... Qc8 {[%clk 0:01:45.7]} 19. Nce2 {[%clk 0:01:39.4]} 19... a5
{[%clk 0:01:40.2]} 20. Bh6 {[%clk 0:01:23.1]} 20... a4 {[%clk 0:01:33.4]} 21.
Bxg7 {[%clk 0:01:21.3]} 21... Kxg7 {[%clk 0:01:33.6]} 22. g4 {[%clk 0:01:13.8]}
22... Rh8 {[%clk 0:01:07.6]} 23. g5 {[%clk 0:01:00.2]} 23... Nd7 {[%clk
0:01:07.7]} 24. f4 {[%clk 0:00:29.9]} 24... Bg4 {[%clk 0:01:05]} 25. f5 {[%clk
0:00:27.3]} 25... Ne5 {[%clk 0:00:56.2]} 26. Rdf1 {[%clk 0:00:21.9]} 26... axb3
{[%clk 0:00:42]} 27. cxb3 {[%clk 0:00:22.8]} 27... Qc5 {[%clk 0:00:41.9]} 28.
f6+ {[%clk 0:00:22.9]} 28... exf6 {[%clk 0:00:42.2]} 29. gxf6+ {[%clk
0:00:23.8]} 29... Kh7 {[%clk 0:00:41.8]} 30. Nf4 {[%clk 0:00:20.4]} 30... Rhc8
{[%clk 0:00:19.6]} 31. Rc1 {[%clk 0:00:18.3]} 31... Qa3 {[%clk 0:00:18.6]} 32.
Nd5 {[%clk 0:00:17.4]} 32... Nf3 {[%clk 0:00:14.6]} 33. Nxf3 {[%clk 0:00:15.2]}
33... Bxf3 {[%clk 0:00:14.8]} 34. Rxc8 {[%clk 0:00:07.9]} 34... Rxc8 {[%clk
0:00:12.9]} 35. Re1 {[%clk 0:00:07.2]} 35... Rc5 {[%clk 0:00:08.5]} 36. Nb4
{[%clk 0:00:07.6]} 36... Re5 {[%clk 0:00:07.1]} 37. Qc3 {[%clk 0:00:07.2]} 37...
Bxe4+ {[%clk 0:00:06.9]} 38. Ka1 {[%clk 0:00:07.1]} 38... Qa5 {[%clk 0:00:07]}
39. Kb2 {[%clk 0:00:06.8]} 39... Qb6 {[%clk 0:00:07]} 40. Re3 {[%clk 0:00:07.1]}
40... Qc5 {[%clk 0:00:06.8]} 41. Qd2 {[%clk 0:00:06.3]} 41... Bf5 {[%clk
0:00:06.1]} 42. Rc3 {[%clk 0:00:06.5]} 42... Qg1 {[%clk 0:00:05.6]} 43. Rc7
{[%clk 0:00:06.8]} 43... Be6 {[%clk 0:00:05.2]} 44. Qxd6 {[%clk 0:00:05.8]}
44... Re2+ {[%clk 0:00:04.9]} 45. Nc2 {[%clk 0:00:06]} 45... Qg2 {[%clk
0:00:04.1]} 46. Qf8 {[%clk 0:00:05.8]} 46... Rxc2+ {[%clk 0:00:01.9]} 47. Rxc2
{[%clk 0:00:06.7]} 47... Qe4 {[%clk 0:00:01.7]} 48. Qg7# {[%clk 0:00:07]} 1-0